{"text_format":"1","workbook":"xlsx","n_sheets":4,"sheets":["Identificação","Formação","Exec._Orçam.","Folha1"],"not_rendered":{"charts":0,"images":2,"macros":0,"external_links":0,"defined_names":3,"comments":3,"pivot_tables":0},"unopened":[],"bounds":{"document_bytes":16777216,"sheet_cells":100000,"rows_first":2000,"rows_last":500,"rows_between":2000,"halvings":0,"cell_chars":16384,"cell_head_chars":4096},"cells_cut":0,"cells_raw":0,"read":"whole","date_system":"1900"}

{"sheet":"Identificação","index":0,"n_rows":101,"n_cols":88,"rows_kept":101,"cut":false,"hidden":false,"merged":[[32,8,32,21],[32,42,32,55],[14,6,16,52],[22,3,22,55],[30,42,30,55],[26,11,26,55],[28,11,28,55],[30,8,30,21],[30,33,30,36],[30,38,30,40],[24,31,24,33],[3,19,3,38],[5,19,5,38],[7,1,7,56],[11,6,13,52],[4,17,4,40],[34,7,34,16],[34,22,34,31],[34,36,34,55],[39,3,39,55],[42,11,42,55],[45,32,45,55],[50,6,50,53],[45,11,45,20],[47,7,47,16],[47,40,47,49]]}
[null,null,null,null,null,null,null,null,null,null,null,null,null,null,null,null,null,null,null,null,null,null,null,null,null,null,null,null,null,null,null,null,null,null,null,null,null,null,null,null,null,null,null,null,null,null,null,null,null,null,null,null,null,null,null,null,"Versão 2024"]
[]
[]
[null,null,null,null,null,null,null,null,null,null,null,null,null,null,null,null,null,null,null,"REGIÃO AUTÓNOMA DOS AÇORES"]
[null,null,null,null,null,null,null,null,null,null,null,null,null,null,null,null,null,"SECRETARIA REGIONAL DA EDUCAÇÃO, CULTURA E DESPORTO"]
[null,null,null,null,null,null,null,null,null,null,null,null,null,null,null,null,null,null,null,"DIREÇÃO REGIONAL DO DESPORTO"]
[]
[null,"RELATÓRIO DO PROGRAMA DE DESENVOLVIMENTO DESPORTIVO"]
[]
[]
[]
[null,null,null,null,null,null,"FORMAÇÃO FORMAL DE AGENTES DESPORTIVOS NÃO PRATICANTES"]
[null,null,null,null,null,null,null,null,null,null,null,null,null,null,null,null,null,null,null,null,null,null,null,null,null,null,null,null,null,null,null,null,null,null,null,null,null,null,null,null,null,null,null,null,null,null,null,null,null,null,null,null,null,null,null,null,null,null,null,null," "]
[]
[null,null,null,null,null,null,"Portaria n.º 84/2018, de 3 de julho"]
[]
[]
[]
[]
[]
[]
[]
[null,null,null,"IDENTIFICAÇÃO DA ENTIDADE ",null,null,null,null,null,null,null,null,null,null,null,null,null,null,null,null,null,null,null,null,null,null,null,null,null,null,null,null,null,null,null,null,null,null,null,null,null,null,null,null,null,null,null,null,null,null,null,null,null,null,null,null,null,null,null,null,null,null,"Andebol"]
[null,null,null,null,null,null,null,null,null,null,null,null,null,null,null,null,null,null,null,null,null,null,null,null,null,null,null,null,null,null,null,null,null,null,null,null,null,null,null,null,null,null,null,null,null,null,null,null,null,null,null,null,null,null,null,null,null,null,null,null,null,null,"Atletismo"]
[null,null,null,null,null,null,null,null,null,null,null,null,null,null,null,null,null,null,null,null,null,null,null,null,null,null,null,null,null,null,"Ano de referência:",null,null,null,null,null,null,null,null,null,null,null,null,null,null,null,null,null,null,null,null,null,null,null,null,null,null,null,null,null,null,null,"Badminton"]
[null,null,null,null,null,null,null,null,null,null,null,null,null,null,null,null,null,null,null,null,null,null,null,null,null,null,null,null,null,null,null,null,null,null,null,null,null,null,null,null,null,null,null,null,null,null,null,null,null,null,null,null,null,null,null,null,null,null,null,null,null,null,"Basquetebol"]
[null,null,null,"Designação Social: ",null,null,null,null,null,null,null,null,null,null,null,null,null,null,null,null,null,null,null,null,null,null,null,null,null,null,null,null,null,null,null,null,null,null,null,null,null,null,null,null,null,null,null,null,null,null,null,null,null,null,null,null,null,null,null,null,null,null,"Canoagem"]
[null,null,null,null,null,null,null,null,null,null,null,null,null,null,null,null,null,null,null,null,null,null,null,null,null,null,null,null,null,null,null,null,null,null,null,null,null,null,null,null,null,null,null,null,null,null,null,null,null,null,null,null,null,null,null,null,null,null,null,null,null,null,"Ciclismo"]
[null,null,null,"Morada (Sede Social):",null,null,null,null,null,null,null,null,null,null,null,null,null,null,null,null,null,null,null,null,null,null,null,null,null,null,null,null,null,null,null,null,null,null,null,null,null,null,null,null,null,null,null,null,null,null,null,null,null,null,null,null,null,null,null,null,null,null,"Columbófilia"]
[null,null,null,null,null,null,null,null,null,null,null,null,null,null,null,null,null,null,null,null,null,null,null,null,null,null,null,null,null,null,null,null,null,null,null,null,null,null,null,null,null,null,null,null,null,null,null,null,null,null,null,null,null,null,null,null,null,null,null,null,null,null,"Dança"]
[null,null,null,"Localidade:",null,null,null,null,null,null,null,null,null,null,null,null,null,null,null,null,null,null,null,null,null,null,null,null,null,null,null,null,"Código Postal:  ",null,null,null,null,"-",null,null,null,null,null,null,null,null,null,null,null,null,null,null,null,null,null,null,null,null,null,null,null,null,"Desporto Equestre"]
[null,null,null,null,null,null,null,null,null,null,null,null,null,null,null,null,null,null,null,null,null,null,null,null,null,null,null,null,null,null,null,null,null,null,null,null,null,null,null,null,null,null,null,null,null,null,null,null,null,null,null,null,null,null,null,null,null,null,null,null,null,null,"Escalada"]
[null,null,null,"Concelho:",null,null,null,null,null,null,null,null,null,null,null,null,null,null,null,null,null,null,null,null,null,null,null,null,null,null,null,null,null,null,null,null,null,null,null,null,null,"Ilha:  ",null,null,null,null,null,null,null,null,null,null,null,null,null,null,null,null,null,null,null,null,"Esgrima"]
[null,null,null,null,null,null,null,null,null,null,null,null,null,null,null,null,null,null,null,null,null,null,null,null,null,null,null,null,null,null,null,null,null,null,null,null,null,null,null,null,null,null,null,null,null,null,null,null,null,null,null,null,null,null,null,null,null,null,null,null,null,null,"Futebol"]
[null,null,null,null,null,null,"Telefone: ",null,null,null,null,null,null,null,null,null,null,null,null,null,null,"Telemóvel: ",null,null,null,null,null,null,null,null,null,null,null,null,null,"E-mail: ",null,null,null,null,null,null,null,null,null,null,null,null,null,null,null,null,null,null,null,null,null,null,null,null,null,null,"Ginástica"]
[null,null,null,null,null,null,null,null,null,null,null,null,null,null,null,null,null,null,null,null,null,null,null,null,null,null,null,null,null,null,null,null,null,null,null,null,null,null,null,null,null,null,null,null,null,null,null,null,null,null,null,null,null,null,null,null,null,null,null,null,null,null,"Goalball"]
[null,null,null,null,null,null,null,null,null,null,null,null,null,null,null,null,null,null,null,null,null,null,null,null,null,null,null,null,null,null,null,null,null,null,null,null,null,null,null,null,null,null,null,null,null,null,null,null,null,null,null,null,null,null,null,null,null,null,null,null,null,null,"Golfe"]
[null,null,null,null,null,null,null,null,null,null,null,null,null,null,null,null,null,null,null,null,null,null,null,null,null,null,null,null,null,null,null,null,null,null,null,null,null,null,null,null,null,null,null,null,null,null,null,null,null,null,null,null,null,null,null,null,null,null,null,null,null,null,"Judo"]
[null,null,null,null,null,null,null,null,null,null,null,null,null,null,null,null,null,null,null,null,null,null,null,null,null,null,null,null,null,null,null,null,null,null,null,null,null,null,null,null,null,null,null,null,null,null,null,null,null,null,null,null,null,null,null,null,null,null,null,null,null,null,"Karaté"]
[null,null,null,"IDENTIFICAÇÃO DO RESPONSÁVEL DA ENTIDADE",null,null,null,null,null,null,null,null,null,null,null,null,null,null,null,null,null,null,null,null,null,null,null,null,null,null,null,null,null,null,null,null,null,null,null,null,null,null,null,null,null,null,null,null,null,null,null,null,null,null,null,null,null,null,null,null,null,null,"Kickboxing"]
[null,null,null,null,null,null,null,null,null,null,null,null,null,null,null,null,null,null,null,null,null,null,null,null,null,null,null,null,null,null,null,null,null,null,null,null,null,null,null,null,null,null,null,null,null,null,null,null,null,null,null,null,null,null,null,null,null,null,null,null,null,null,"Motociclismo"]
[null,null,null,null,null,null,null,null,null,null,null,null,null,null,null,null,null,null,null,null,null,null,null,null,null,null,null,null,null,null,null,null,null,null,null,null,null,null,null,null,null,null,null,null,null,null,null,null,null,null,null,null,null,null,null,null,null,null,null,null,null,null,"Motonáutica"]
[null,null,null,null,null,null,null,null,null,null,"Presidente da Direção: ",null,null,null,null,null,null,null,null,null,null,null,null,null,null,null,null,null,null,null,null,null,null,null,null,null,null,null,null,null,null,null,null,null,null,null,null,null,null,null,null,null,null,null,null,null,null,null,null,null,null,null,"Natação"]
[null,null,null,null,null,null,null,null,null,null,null,null,"(Nome completo sem abreviaturas)",null,null,null,null,null,null,null,null,null,null,null,null,null,null,null,null,null,null,null,null,null,null,null,null,null,null,null,null,null,null,null,null,null,null,null,null,null,null,null,null,null,null,null,null,null,null,null,null,null,"Parapente"]
[null,null,null,null,null,null,null,null,null,null,null,null,null,null,null,null,null,null,null,null,null,null,null,null,null,null,null,null,null,null,null,null,null,null,null,null,null,null,null,null,null,null,null,null,null,null,null,null,null,null,null,null,null,null,null,null,null,null,null,null,null,null,"Patinagem"]
[null,null,null,null,null,null,null,null,null,null,"B. Ident. / C. Cidadão:",null,null,null,null,null,null,null,null,null,null,null,null,null,null,null,null,null,null,null,null,"E-mail: ",null,null,null,null,null,null,null,null,null,null,null,null,null,null,null,null,null,null,null,null,null,null,null,null,null,null,null,null,null,null,"Pesca Desportiva"]
[null,null,null,null,null,null,null,null,null,null,null,null,null,null,null,null,null,null,null,null,null,null,null,null,null,null,null,null,null,null,null,null,null,null,null,null,null,null,null,null,null,null,null,null,null,null,null,null,null,null,null,null,null,null,null,null,null,null,null,null,null,null,"Surf"]
[null,null,null,null,null,null,"Telefone: ",null,null,null,null,null,null,null,null,null,null,null,null,null,null,null,null,null,null,null,null,null,null,null,null,null,null,null,null,null,null,null,null,"Telemóvel: ",null,null,null,null,null,null,null,null,null,null,null,null,null,null,null,null,null,null,null,null,null,null,"Ténis de Campo"]
[]
[]
[null,null,"Entidade: ",null,null,null,{"$f":"IF(Identificação!AF25,Identificação!L27,\"\")","v":""},null,null,null,null,null,null,null,null,null,null,null,null,null,null,null,null,null,null,null,null,null,null,null,null,null,null,null,null,null,null,null,null,null,null,null,null,null,null,null,null,null,null,null,null,null,null,null,null,null,"Página 1"]
[]
[null,null,null,null,null,null,null,null,null,"Rua da Sé, n.º 158",null,null,null,null,null,null,null,null,null,null,null,null,null,null,null,null,null,null,null,null,null,null,null,null,null,null,null,null,null,null,null,null,null,null,null,null,null,"https://portal.azores.gov.pt/web/drd"]
[null,null,null,null,null,null,null,null,null,"9700-191 Angra do Heroísmo",null,null,null,null,null,null,null,null,null,null,null,null,null,null,null,null,null,null,null,null,"Telefone: 295 206 980 ",null,null,null,null,null,null,null,null,null,null,null,null,null,null,null,null,"drd@azores.gov.pt"]
[]
[]
[]
[]
[]
[]
[]
[]
[]
[]
[]
[]
[]
[]
[]
[null,null,null,null,null,null,null,null,null,null,null,null,null,null,null,null,null,null,null,null,null,null,null,null,null,null,null,null,null,null,null,null,null,null,null,null,null,null,null,null,null,null,null,null,null,null,null,null,null,null,null,null,null,null,null,null,null,null,null,null,null,"dia","Mês","ano","Modalidade",null,"Local","Concelho",null,"eliminatórias",null,"Fase Disputa",null,"Meios de transporte","Género",null,null,null,"GRAU","REGIME","CATEGORIA","SITUAÇÃO","CATEGORIA",null,"TIPOLOGIA",null,"OBJETIVOS","FUNÇÕES"]
[null,null,null,null,null,null,null,null,null,null,null,null,null,null,null,null,null,null,null,null,null,null,null,null,null,null,null,null,null,null,null,null,null,null,null,null,null,null,null,null,null,null,null,null,null,null,null,null,null,null,null,null,null,null,null,null,null,null,null,null,null,1,"JAN",2016,"Andebol",null,"Continente","Angra do Heroísmo",null,"1ª Eliminatória",null,"Fase Única",null,"Aéreo","Masculino ","Sim","07-09 anos","Organização","I","T. Inteiro","Estagiário","Sim","Árbitro/Juiz",null,"C. T. Ilha",null,"da atividade (provas, clubes, equipas e praticantes)","Dir. Técnico"]
[null,null,null,null,null,null,null,null,null,null,null,null,null,null,null,null,null,null,null,null,null,null,null,null,null,null,null,null,null,null,null,null,null,null,null,null,null,null,null,null,null,null,null,null,null,null,null,null,null,null,null,null,null,null,null,null,null,null,null,null,null,2,"FEV",2017,"Basquetebol",null,"Madeira","Calheta",null,"2ª Eliminatória",null,"Duas Fases",null,"Marítimo","Feminino","Não","08-10 anos","Participação","II","T. Parcial","Regional","Não","Treinador",null,"Proj. Especial",null,"do enquadramento técnico (excluir a formação)","Selecionador"]
[null,null,null,null,null,null,null,null,null,null,null,null,null,null,null,null,null,null,null,null,null,null,null,null,null,null,null,null,null,null,null,null,null,null,null,null,null,null,null,null,null,null,null,null,null,null,null,null,null,null,null,null,null,null,null,null,null,null,null,null,null,3,"MAR",2018,"Futebol",null,"Santa Maria","Corvo",null,"3ª Eliminatória",null,"Três Fases",null,"Terrestre","Misto",null,"09-11 anos",null,"III",null,"Nacional","Não tem",null,null,"Estágio",null,"da arbitragem (excluir a formação)","Treinador"]
[null,null,null,null,null,null,null,null,null,null,null,null,null,null,null,null,null,null,null,null,null,null,null,null,null,null,null,null,null,null,null,null,null,null,null,null,null,null,null,null,null,null,null,null,null,null,null,null,null,null,null,null,null,null,null,null,null,null,null,null,null,4,"ABR",2019,"Futsal",null,"São Miguel","Horta",null,"4ª Eliminatória",null,null,null,null,null,"Ativo","10-12 anos",null,"IV",null,"Internacional",null,null,null,"Outro",null,"da melhoria de classificações em provas regionais, nacionais e internacionais"]
[null,null,null,null,null,null,null,null,null,null,null,null,null,null,null,null,null,null,null,null,null,null,null,null,null,null,null,null,null,null,null,null,null,null,null,null,null,null,null,null,null,null,null,null,null,null,null,null,null,null,null,null,null,null,null,null,null,null,null,null,null,5,"MAI",2020,"Hóquei em Patins",null,"Terceira","Lagoa",null,"1/16 avos de Final",null,null,null,null,null,"Inativo","11-13 anos",null,null,null,null,null,"Árbitro",null,null,null,"da formação de praticantes e de agentes desportivos não praticantes (preencher o n.º 7)"]
[null,null,null,null,null,null,null,null,null,null,null,null,null,null,null,null,null,null,null,null,null,null,null,null,null,null,null,null,null,null,null,null,null,null,null,null,null,null,null,null,null,null,null,null,null,null,null,null,null,null,null,null,null,null,null,null,null,null,null,null,null,6,"JUN",2021,"Ténis de Mesa",null,"Graciosa","Lajes das Flores",null,"1/8 avos de Final",null,null,null,null,null,null,"12-14 anos",null,null,null,null,null,"Dirigente",null,null,null,"da promoção de atividades desportivas (preencher o n.º 8)"]
[null,null,null,null,null,null,null,null,null,null,null,null,null,null,null,null,null,null,null,null,null,null,null,null,null,null,null,null,null,null,null,null,null,null,null,null,null,null,null,null,null,null,null,null,null,null,null,null,null,null,null,null,null,null,null,null,null,null,null,null,null,7,"JUL",2022,"Voleibol",null,"São Jorge","Lajes do Pico",null,"1/4 avos de Final",null,null,null,null,null,null,"13-15 anos",null,null,null,null,null,"Fisioterapeuta",null,null,null,"outro"]
[null,null,null,null,null,null,null,null,null,null,null,null,null,null,null,null,null,null,null,null,null,null,null,null,null,null,null,null,null,null,null,null,null,null,null,null,null,null,null,null,null,null,null,null,null,null,null,null,null,null,null,null,null,null,null,null,null,null,null,null,null,8,"AGO",2023,null,null,"Pico","Madalena",null,"1/2 de Final",null,null,null,null,null,null,"14-16 anos",null,null,null,null,null,"Juiz"]
[null,null,null,null,null,null,null,null,null,null,null,null,null,null,null,null,null,null,null,null,null,null,null,null,null,null,null,null,null,null,null,null,null,null,null,null,null,null,null,null,null,null,null,null,null,null,null,null,null,null,null,null,null,null,null,null,null,null,null,null,null,9,"SET",2024,null,null,"Faial","Nordeste",null,"Final",null,null,null,null,null,null,"15-17 anos",null,null,null,null,null,"Médico"]
[null,null,null,null,null,null,null,null,null,null,null,null,null,null,null,null,null,null,null,null,null,null,null,null,null,null,null,null,null,null,null,null,null,null,null,null,null,null,null,null,null,null,null,null,null,null,null,null,null,null,null,null,null,null,null,null,null,null,null,null,null,10,"OUT",2025,null,null,"Flores","Ponta Delgada",null,"Final Four",null,null,null,null,null,null,"16-18 anos",null,null,null,null,null,"Treinador"]
[null,null,null,null,null,null,null,null,null,null,null,null,null,null,null,null,null,null,null,null,null,null,null,null,null,null,null,null,null,null,null,null,null,null,null,null,null,null,null,null,null,null,null,null,null,null,null,null,null,null,null,null,null,null,null,null,null,null,null,null,null,11,"NOV",2026,null,null,"Corvo","Povoação",null,null,null,null,null,null,null,null,"17-19 anos",null,null,null,null,null,"Outro"]
[null,null,null,null,null,null,null,null,null,null,null,null,null,null,null,null,null,null,null,null,null,null,null,null,null,null,null,null,null,null,null,null,null,null,null,null,null,null,null,null,null,null,null,null,null,null,null,null,null,null,null,null,null,null,null,null,null,null,null,null,null,12,"DEZ",null,null,null,null,"Praia da Vitória",null,null,null,null,null,null,null,null,"> 18 anos"]
[null,null,null,null,null,null,null,null,null,null,null,null,null,null,null,null,null,null,null,null,null,null,null,null,null,null,null,null,null,null,null,null,null,null,null,null,null,null,null,null,null,null,null,null,null,null,null,null,null,null,null,null,null,null,null,null,null,null,null,null,null,13,null,null,null,null,null,"Ribeira Grande",null,null,null,null,null,null,null,null,"> 19 anos"]
[null,null,null,null,null,null,null,null,null,null,null,null,null,null,null,null,null,null,null,null,null,null,null,null,null,null,null,null,null,null,null,null,null,null,null,null,null,null,null,null,null,null,null,null,null,null,null,null,null,null,null,null,null,null,null,null,null,null,null,null,null,14,null,null,null,null,null,"Santa Cruz da Graciosa"]
[null,null,null,null,null,null,null,null,null,null,null,null,null,null,null,null,null,null,null,null,null,null,null,null,null,null,null,null,null,null,null,null,null,null,null,null,null,null,null,null,null,null,null,null,null,null,null,null,null,null,null,null,null,null,null,null,null,null,null,null,null,15,null,null,null,null,null,"Santa Cruz das Flores"]
[null,null,null,null,null,null,null,null,null,null,null,null,null,null,null,null,null,null,null,null,null,null,null,null,null,null,null,null,null,null,null,null,null,null,null,null,null,null,null,null,null,null,null,null,null,null,null,null,null,null,null,null,null,null,null,null,null,null,null,null,null,16,null,null,null,null,null,"São Roque do Pico"]
[null,null,null,null,null,null,null,null,null,null,null,null,null,null,null,null,null,null,null,null,null,null,null,null,null,null,null,null,null,null,null,null,null,null,null,null,null,null,null,null,null,null,null,null,null,null,null,null,null,null,null,null,null,null,null,null,null,null,null,null,null,17,null,null,null,null,null,"Velas"]
[null,null,null,null,null,null,null,null,null,null,null,null,null,null,null,null,null,null,null,null,null,null,null,null,null,null,null,null,null,null,null,null,null,null,null,null,null,null,null,null,null,null,null,null,null,null,null,null,null,null,null,null,null,null,null,null,null,null,null,null,null,18,null,null,null,null,null,"Vila do Porto"]
[null,null,null,null,null,null,null,null,null,null,null,null,null,null,null,null,null,null,null,null,null,null,null,null,null,null,null,null,null,null,null,null,null,null,null,null,null,null,null,null,null,null,null,null,null,null,null,null,null,null,null,null,null,null,null,null,null,null,null,null,null,19,null,null,null,null,null,"Vila Franca do Campo"]
[null,null,null,null,null,null,null,null,null,null,null,null,null,null,null,null,null,null,null,null,null,null,null,null,null,null,null,null,null,null,null,null,null,null,null,null,null,null,null,null,null,null,null,null,null,null,null,null,null,null,null,null,null,null,null,null,null,null,null,null,null,20]
[null,null,null,null,null,null,null,null,null,null,null,null,null,null,null,null,null,null,null,null,null,null,null,null,null,null,null,null,null,null,null,null,null,null,null,null,null,null,null,null,null,null,null,null,null,null,null,null,null,null,null,null,null,null,null,null,null,null,null,null,null,21]
[null,null,null,null,null,null,null,null,null,null,null,null,null,null,null,null,null,null,null,null,null,null,null,null,null,null,null,null,null,null,null,null,null,null,null,null,null,null,null,null,null,null,null,null,null,null,null,null,null,null,null,null,null,null,null,null,null,null,null,null,null,22]
[null,null,null,null,null,null,null,null,null,null,null,null,null,null,null,null,null,null,null,null,null,null,null,null,null,null,null,null,null,null,null,null,null,null,null,null,null,null,null,null,null,null,null,null,null,null,null,null,null,null,null,null,null,null,null,null,null,null,null,null,null,23]
[null,null,null,null,null,null,null,null,null,null,null,null,null,null,null,null,null,null,null,null,null,null,null,null,null,null,null,null,null,null,null,null,null,null,null,null,null,null,null,null,null,null,null,null,null,null,null,null,null,null,null,null,null,null,null,null,null,null,null,null,null,24]
[null,null,null,null,null,null,null,null,null,null,null,null,null,null,null,null,null,null,null,null,null,null,null,null,null,null,null,null,null,null,null,null,null,null,null,null,null,null,null,null,null,null,null,null,null,null,null,null,null,null,null,null,null,null,null,null,null,null,null,null,null,25]
[null,null,null,null,null,null,null,null,null,null,null,null,null,null,null,null,null,null,null,null,null,null,null,null,null,null,null,null,null,null,null,null,null,null,null,null,null,null,null,null,null,null,null,null,null,null,null,null,null,null,null,null,null,null,null,null,null,null,null,null,null,26]
[null,null,null,null,null,null,null,null,null,null,null,null,null,null,null,null,null,null,null,null,null,null,null,null,null,null,null,null,null,null,null,null,null,null,null,null,null,null,null,null,null,null,null,null,null,null,null,null,null,null,null,null,null,null,null,null,null,null,null,null,null,27]
[null,null,null,null,null,null,null,null,null,null,null,null,null,null,null,null,null,null,null,null,null,null,null,null,null,null,null,null,null,null,null,null,null,null,null,null,null,null,null,null,null,null,null,null,null,null,null,null,null,null,null,null,null,null,null,null,null,null,null,null,null,28]
[null,null,null,null,null,null,null,null,null,null,null,null,null,null,null,null,null,null,null,null,null,null,null,null,null,null,null,null,null,null,null,null,null,null,null,null,null,null,null,null,null,null,null,null,null,null,null,null,null,null,null,null,null,null,null,null,null,null,null,null,null,29]
[null,null,null,null,null,null,null,null,null,null,null,null,null,null,null,null,null,null,null,null,null,null,null,null,null,null,null,null,null,null,null,null,null,null,null,null,null,null,null,null,null,null,null,null,null,null,null,null,null,null,null,null,null,null,null,null,null,null,null,null,null,30]
[null,null,null,null,null,null,null,null,null,null,null,null,null,null,null,null,null,null,null,null,null,null,null,null,null,null,null,null,null,null,null,null,null,null,null,null,null,null,null,null,null,null,null,null,null,null,null,null,null,null,null,null,null,null,null,null,null,null,null,null,null,31]

{"sheet":"Formação","index":1,"n_rows":72,"n_cols":57,"rows_kept":72,"cut":false,"hidden":false,"merged":[[59,3,60,55],[62,3,62,52],[64,9,64,40],[15,4,16,17],[0,1,0,57],[2,2,3,56],[4,2,12,56],[14,2,14,56],[15,2,16,3],[17,2,18,3],[17,4,18,17],[19,2,20,3],[15,18,16,23],[23,2,24,3],[23,4,24,17],[25,2,26,3],[68,6,68,53],[65,9,65,40],[65,45,65,47],[65,49,65,51],[65,53,65,55],[25,4,26,17],[19,4,20,17],[21,2,22,3],[21,4,22,17],[31,2,32,3],[31,4,32,17],[33,2,34,3],[33,4,34,17],[27,2,28,3],[27,4,28,17],[29,2,30,3],[29,4,30,17],[39,2,40,3],[39,4,40,17],[41,2,42,3],[41,4,42,17],[35,2,36,3],[35,4,36,17],[37,2,38,3],[37,4,38,17],[39,18,40,23],[33,18,34,23],[55,2,56,3],[55,4,56,17],[51,2,52,3],[51,4,52,17],[53,2,54,3],[53,4,54,17],[47,2,48,3],[47,4,48,17],[49,2,50,3],[49,4,50,17],[43,2,44,3],[43,4,44,17],[45,2,46,3],[45,4,46,17],[51,18,52,23],[51,24,52,56],[15,24,16,56],[17,18,18,23],[19,18,20,23],[21,18,22,23],[23,18,24,23],[25,18,26,23],[27,18,28,23],[29,18,30,23],[31,18,32,23],[41,18,42,23],[43,18,44,23],[45,18,46,23],[35,18,36,23],[37,18,38,23],[53,18,54,23],[55,18,56,23],[17,24,18,56],[19,24,20,56],[21,24,22,56],[23,24,24,56],[25,24,26,56],[27,24,28,56],[29,24,30,56],[31,24,32,56],[33,24,34,56],[35,24,36,56],[37,24,38,56],[39,24,40,56],[47,18,48,23],[49,18,50,23],[53,24,54,56],[55,24,56,56],[41,24,42,56],[43,24,44,56],[45,24,46,56],[47,24,48,56],[49,24,50,56]]}
[null,"1. Formação de Recursos Humanos"]
[]
[null,null,"1.1. Apreciação e análise crítica do desenvolvimento do programa da Formação Formal de Agentes Desportivos Não Praticantes (cumprimento de objetivos, necessidades e dificuldades sentidas neste projeto)"]
[]
[]
[]
[]
[]
[]
[]
[]
[]
[]
[]
[null,null,"1.2. Listagem das Ações da Formação Formal de Agentes Desportivos Não Praticantes \n"]
[null,null,"N.º",null,"Indicação de todas as ações concretizadas",null,null,null,null,null,null,null,null,null,null,null,null,null,"Comparticipada pela DRD",null,null,null,null,null,"Observações\n (campo a preencher apenas no caso das ações não comparticipadas pela DRD)"]
[]
[null,null,1]
[]
[null,null,2]
[]
[null,null,3]
[]
[null,null,4]
[]
[null,null,5]
[]
[null,null,6]
[]
[null,null,7]
[]
[null,null,8]
[]
[null,null,9]
[]
[null,null,10]
[]
[null,null,11]
[]
[null,null,12]
[]
[null,null,13]
[]
[null,null,14]
[]
[null,null,15]
[]
[null,null,16]
[]
[null,null,17]
[]
[null,null,18]
[]
[null,null,19]
[]
[null,null,20]
[]
[]
[]
[null,null,null,"Declaro, por minha honra, que os dados constantes neste formulário cumprem previamente com as normas aplicáveis em matéria de Regulamento Geral de Proteção de Dados, Regulamento (EU) 2016/679 do Parlamento Europeu e do Conselho da União Europeia, de 27 de abril de 2016."]
[]
[]
[null,null,null,"Declaro, ainda, que são verdadeiras todas as informações constantes no presente formulário."]
[]
[null,null,null,null,null,null,null,null,null,"Identificação do responsável pela informação"]
[null,null,null,null,null,null,null,null,"Nome completo:",null,null,null,null,null,null,null,null,null,null,null,null,null,null,null,null,null,null,null,null,null,null,null,null,null,null,null,null,null,null,null,null,null,null,null,"Data: ",null,null,null,"/",null,null,null,"/"]
[]
[]
[null,null,"Entidade: ",null,null,null,{"$f":"IF(Identificação!AF25,Identificação!L27,\"\")","v":""},null,null,null,null,null,null,null,null,null,null,null,null,null,null,null,null,null,null,null,null,null,null,null,null,null,null,null,null,null,null,null,null,null,null,null,null,null,null,null,null,null,null,null,null,null,null,null,null,null,"Página 2"]
[]
[null,null,null,null,null,null,null,null,null,"Rua da Sé, n.º 158",null,null,null,null,null,null,null,null,null,null,null,null,null,null,null,null,null,null,null,null,null,null,null,null,null,null,null,null,null,null,null,null,null,null,null,null,null,"https://portal.azores.gov.pt/web/drd"]
[null,null,null,null,null,null,null,null,null,"9700-191 Angra do Heroísmo",null,null,null,null,null,null,null,null,null,null,null,null,null,null,null,null,null,null,null,null,"Telefone: 295 206 980 ",null,null,null,null,null,null,null,null,null,null,null,null,null,null,null,null,"drd@azores.gov.pt"]

{"sheet":"Exec._Orçam.","index":2,"n_rows":68,"n_cols":57,"rows_kept":68,"cut":false,"hidden":false,"merged":[[18,48,24,53],[31,48,32,53],[25,54,30,56],[25,2,30,12],[25,13,25,38],[25,39,25,44],[25,45,25,47],[26,13,26,38],[26,39,26,44],[26,45,26,47],[27,13,27,38],[25,48,30,53],[30,13,30,38],[30,39,30,44],[30,45,30,47],[20,45,20,47],[32,45,32,47],[31,39,31,44],[31,45,31,47],[24,13,24,38],[18,13,18,38],[18,39,18,44],[18,45,18,47],[19,13,19,38],[44,2,62,56],[38,2,38,47],[38,48,38,53],[40,2,40,47],[40,48,40,53],[41,47,41,53],[37,13,37,38],[33,13,33,38],[33,39,33,44],[33,45,33,47],[34,13,34,38],[37,39,37,44],[37,45,37,47],[34,39,34,44],[34,45,34,47],[35,13,35,38],[35,39,35,44],[35,45,35,47],[36,13,36,38],[33,2,37,12],[36,39,36,44],[33,48,37,53],[43,2,43,56],[33,54,37,56],[17,48,17,53],[17,54,17,56],[12,13,12,38],[12,39,12,44],[12,45,12,47],[10,2,10,12],[10,13,10,38],[10,39,10,44],[10,45,10,47],[10,48,10,53],[10,54,10,56],[11,54,12,56],[11,13,11,38],[11,39,11,44],[11,45,11,47],[13,13,13,38],[13,39,13,44],[13,45,13,47],[11,2,12,12],[13,2,13,12],[14,2,14,47],[17,2,17,38],[9,48,9,53],[9,54,9,56],[8,2,8,12],[8,13,8,38],[8,39,8,44],[8,45,8,47],[8,48,8,53],[8,54,8,56],[14,48,14,53],[11,48,12,53],[4,54,4,56],[0,1,0,57],[3,39,3,44],[3,45,3,47],[3,48,3,53],[3,54,3,56],[4,2,4,12],[4,48,4,53],[7,54,7,56],[4,13,4,38],[4,39,4,44],[4,45,4,47],[5,48,6,53],[5,54,6,56],[6,13,6,38],[6,39,6,44],[6,45,6,47],[7,2,7,12],[7,13,7,38],[7,39,7,44],[7,45,7,47],[7,48,7,53],[5,2,6,12],[5,13,5,38],[3,2,3,38],[5,39,5,44],[5,45,5,47],[9,2,9,12],[9,13,9,38],[9,39,9,44],[9,45,9,47],[17,39,17,44],[17,45,17,47],[19,39,19,44],[19,45,19,47],[20,13,20,38],[20,39,20,44],[22,39,22,44],[22,45,22,47],[21,13,21,38],[21,39,21,44],[21,45,21,47],[22,13,22,38],[31,54,32,56],[64,6,64,53],[36,45,36,47],[13,48,13,53],[27,39,27,44],[27,45,27,47],[28,13,28,38],[28,39,28,44],[28,45,28,47],[29,13,29,38],[29,39,29,44],[29,45,29,47],[18,2,24,12],[23,13,23,38],[23,45,23,47],[24,45,24,47],[23,39,23,44],[24,39,24,44],[18,54,24,56],[13,54,13,56],[32,39,32,44],[31,2,32,12],[32,13,32,38],[31,13,31,38]]}
[null,"2. Execução orçamental"]
[]
[]
[null,null,"RECEITAS",null,null,null,null,null,null,null,null,null,null,null,null,null,null,null,null,null,null,null,null,null,null,null,null,null,null,null,null,null,null,null,null,null,null,null,null,"PARCIAL €",null,null,null,null,null,"%",null,null,"TOTAL €",null,null,null,null,null,"%"]
[null,null,"Direção Regional do Desporto",null,null,null,null,null,null,null,null,null,null,"Apoio à Formação Formal de Agentes Desportivos Não Praticantes",null,null,null,null,null,null,null,null,null,null,null,null,null,null,null,null,null,null,null,null,null,null,null,null,null,null,null,null,null,null,null,{"$f":"IFERROR(IF(AN5,AN5*100/$AW$15,\"\"),\"\")","v":""},null,null,{"$f":"SUM(AN5:AS5)","v":0},null,null,null,null,null,{"$f":"IFERROR(IF(AW5,AW5*100/$AW$15,\"\"),\"\")","v":""}]
[null,null,"Autarquias",null,null,null,null,null,null,null,null,null,null,"Câmara Municipal",null,null,null,null,null,null,null,null,null,null,null,null,null,null,null,null,null,null,null,null,null,null,null,null,null,null,null,null,null,null,null,"",null,null,{"$f":"SUM(AN6:AS7)","v":0},null,null,null,null,null,{"$f":"IFERROR(IF(AW6,AW6*100/$AW$15,\"\"),\"\")","v":""}]
[null,null,null,null,null,null,null,null,null,null,null,null,null,"Junta de Freguesia",null,null,null,null,null,null,null,null,null,null,null,null,null,null,null,null,null,null,null,null,null,null,null,null,null,null,null,null,null,null,null,""]
[null,null,"Outras entidades públicas",null,null,null,null,null,null,null,null,null,null,"Verbas de outros departamentos do Governo Regional",null,null,null,null,null,null,null,null,null,null,null,null,null,null,null,null,null,null,null,null,null,null,null,null,null,null,null,null,null,null,null,"",null,null,{"$f":"AN8","v":0},null,null,null,null,null,{"$f":"IFERROR(IF(AW8,AW8*100/$AW$15,\"\"),\"\")","v":""}]
[null,null,"Federação",null,null,null,null,null,null,null,null,null,null,"Verbas para a realização das ações",null,null,null,null,null,null,null,null,null,null,null,null,null,null,null,null,null,null,null,null,null,null,null,null,null,null,null,null,null,null,null,"",null,null,{"$f":"AN9","v":0},null,null,null,null,null,{"$f":"IFERROR(IF(AW9,AW9*100/$AW$15,\"\"),\"\")","v":""}]
[null,null,"Patrocínios",null,null,null,null,null,null,null,null,null,null,"Publicidade e contratos de prestação de serviços",null,null,null,null,null,null,null,null,null,null,null,null,null,null,null,null,null,null,null,null,null,null,null,null,null,null,null,null,null,null,null,"",null,null,{"$f":"AN10","v":0},null,null,null,null,null,{"$f":"IFERROR(IF(AW10,AW10*100/$AW$15,\"\"),\"\")","v":""}]
[null,null,"Donativos",null,null,null,null,null,null,null,null,null,null,"Donativos arrecadados",null,null,null,null,null,null,null,null,null,null,null,null,null,null,null,null,null,null,null,null,null,null,null,null,null,null,null,null,null,null,null,"",null,null,0,null,null,null,null,null,{"$f":"IFERROR(IF(AW11,AW11*100/$AW$15,\"\"),\"\")","v":""}]
[null,null,"Próprias\n(apenas referentes às ações)",null,null,null,null,null,null,null,null,null,null,"Taxas de inscrição",null,null,null,null,null,null,null,null,null,null,null,null,null,null,null,null,null,null,null,null,null,null,null,null,null,null,null,null,null,null,null,"",null,null,{"$f":"SUM(AN12:AS13)","v":0},null,null,null,null,null,{"$f":"IFERROR(IF(AW12,AW12*100/$AW$15,\"\"),\"\")","v":""}]
[null,null,null,null,null,null,null,null,null,null,null,null,null,"Outras receitas próprias",null,null,null,null,null,null,null,null,null,null,null,null,null,null,null,null,null,null,null,null,null,null,null,null,null,null,null,null,null,null,null,""]
[null,null,"Subsídio social de mobilidade",null,null,null,null,null,null,null,null,null,null,"Valor global do subsídio",null,null,null,null,null,null,null,null,null,null,null,null,null,null,null,null,null,null,null,null,null,null,null,null,null,null,null,null,null,null,null,"",null,null,0,null,null,null,null,null,{"$f":"IFERROR(IF(AW14,AW14*100/$AW$15,\"\"),\"\")","v":""}]
[null,null,"TOTAL DAS RECEITAS",null,null,null,null,null,null,null,null,null,null,null,null,null,null,null,null,null,null,null,null,null,null,null,null,null,null,null,null,null,null,null,null,null,null,null,null,null,null,null,null,null,null,null,null,null,{"$f":"SUM(AW5:BB14)","v":0}]
[]
[]
[null,null,"DESPESAS",null,null,null,null,null,null,null,null,null,null,null,null,null,null,null,null,null,null,null,null,null,null,null,null,null,null,null,null,null,null,null,null,null,null,null,null,"PARCIAL €",null,null,null,null,null,"%",null,null,"TOTAL €",null,null,null,null,null,"%"]
[null,null,"Preletores",null,null,null,null,null,null,null,null,null,null,"Viagens aéreas",null,null,null,null,null,null,null,null,null,null,null,null,null,null,null,null,null,null,null,null,null,null,null,null,null,null,null,null,null,null,null,{"$f":"IFERROR(IF(AN19,AN19*100/$AW$39,\"\"),\"\")","v":""},null,null,{"$f":"SUM(AN19:AS25)","v":0},null,null,null,null,null,{"$f":"IF(AW19,AW19*100/$AW$39,\"\")","v":""}]
[null,null,null,null,null,null,null,null,null,null,null,null,null,"Viagens marítimas",null,null,null,null,null,null,null,null,null,null,null,null,null,null,null,null,null,null,null,null,null,null,null,null,null,null,null,null,null,null,null,""]
[null,null,null,null,null,null,null,null,null,null,null,null,null,"Transportes terrestres",null,null,null,null,null,null,null,null,null,null,null,null,null,null,null,null,null,null,null,null,null,null,null,null,null,null,null,null,null,null,null,""]
[null,null,null,null,null,null,null,null,null,null,null,null,null,"Alojamento",null,null,null,null,null,null,null,null,null,null,null,null,null,null,null,null,null,null,null,null,null,null,null,null,null,null,null,null,null,null,null,""]
[null,null,null,null,null,null,null,null,null,null,null,null,null,"Alimentação",null,null,null,null,null,null,null,null,null,null,null,null,null,null,null,null,null,null,null,null,null,null,null,null,null,null,null,null,null,null,null,""]
[null,null,null,null,null,null,null,null,null,null,null,null,null,"Preleções",null,null,null,null,null,null,null,null,null,null,null,null,null,null,null,null,null,null,null,null,null,null,null,null,null,null,null,null,null,null,null,""]
[null,null,null,null,null,null,null,null,null,null,null,null,null,"Outras",null,null,null,null,null,null,null,null,null,null,null,null,null,null,null,null,null,null,null,null,null,null,null,null,null,null,null,null,null,null,null,""]
[null,null,"Formandos",null,null,null,null,null,null,null,null,null,null,"Viagens aéreas",null,null,null,null,null,null,null,null,null,null,null,null,null,null,null,null,null,null,null,null,null,null,null,null,null,null,null,null,null,null,null,"",null,null,{"$f":"SUM(AN26:AS31)","v":0},null,null,null,null,null,{"$f":"IF(AW26,AW26*100/$AW$39,\"\")","v":""}]
[null,null,null,null,null,null,null,null,null,null,null,null,null,"Viagens marítimas",null,null,null,null,null,null,null,null,null,null,null,null,null,null,null,null,null,null,null,null,null,null,null,null,null,null,null,null,null,null,null,""]
[null,null,null,null,null,null,null,null,null,null,null,null,null,"Transportes terrestres",null,null,null,null,null,null,null,null,null,null,null,null,null,null,null,null,null,null,null,null,null,null,null,null,null,null,null,null,null,null,null,""]
[null,null,null,null,null,null,null,null,null,null,null,null,null,"Alojamento",null,null,null,null,null,null,null,null,null,null,null,null,null,null,null,null,null,null,null,null,null,null,null,null,null,null,null,null,null,null,null,""]
[null,null,null,null,null,null,null,null,null,null,null,null,null,"Alimentação",null,null,null,null,null,null,null,null,null,null,null,null,null,null,null,null,null,null,null,null,null,null,null,null,null,null,null,null,null,null,null,""]
[null,null,null,null,null,null,null,null,null,null,null,null,null,"Outras",null,null,null,null,null,null,null,null,null,null,null,null,null,null,null,null,null,null,null,null,null,null,null,null,null,null,null,null,null,null,null,""]
[null,null,"Organização",null,null,null,null,null,null,null,null,null,null,"Taxas de inscrição das ações",null,null,null,null,null,null,null,null,null,null,null,null,null,null,null,null,null,null,null,null,null,null,null,null,null,null,null,null,null,null,null,"",null,null,{"$f":"SUM(AN32:AS33)","v":0},null,null,null,null,null,{"$f":"IF(AW32,AW32*100/$AW$39,\"\")","v":""}]
[null,null,null,null,null,null,null,null,null,null,null,null,null,"Outras",null,null,null,null,null,null,null,null,null,null,null,null,null,null,null,null,null,null,null,null,null,null,null,null,null,null,null,null,null,null,null,""]
[null,null,"Encargos administrativos",null,null,null,null,null,null,null,null,null,null,"Funcionamento administrativo",null,null,null,null,null,null,null,null,null,null,null,null,null,null,null,null,null,null,null,null,null,null,null,null,null,null,null,null,null,null,null,"",null,null,{"$f":"SUM(AN34:AS38)","v":0},null,null,null,null,null,{"$f":"IF(AW34,AW34*100/$AW$39,\"\")","v":""}]
[null,null,null,null,null,null,null,null,null,null,null,null,null,"Direção de Curso",null,null,null,null,null,null,null,null,null,null,null,null,null,null,null,null,null,null,null,null,null,null,null,null,null,null,null,null,null,null,null,""]
[null,null,null,null,null,null,null,null,null,null,null,null,null,"Aluguer de Material",null,null,null,null,null,null,null,null,null,null,null,null,null,null,null,null,null,null,null,null,null,null,null,null,null,null,null,null,null,null,null,""]
[null,null,null,null,null,null,null,null,null,null,null,null,null,"Aquisição de Material",null,null,null,null,null,null,null,null,null,null,null,null,null,null,null,null,null,null,null,null,null,null,null,null,null,null,null,null,null,null,null,""]
[null,null,null,null,null,null,null,null,null,null,null,null,null,"Outras",null,null,null,null,null,null,null,null,null,null,null,null,null,null,null,null,null,null,null,null,null,null,null,null,null,null,null,null,null,null,null,""]
[null,null,"TOTAL DAS DESPESAS",null,null,null,null,null,null,null,null,null,null,null,null,null,null,null,null,null,null,null,null,null,null,null,null,null,null,null,null,null,null,null,null,null,null,null,null,null,null,null,null,null,null,null,null,null,{"$f":"AW19+AW26+AW32+AW34","v":0}]
[]
[null,null,"SALDO",null,null,null,null,null,null,null,null,null,null,null,null,null,null,null,null,null,null,null,null,null,null,null,null,null,null,null,null,null,null,null,null,null,null,null,null,null,null,null,null,null,null,null,null,null,{"$f":"AW15-AW39","v":0}]
[]
[]
[null,null,"OBSERVAÇÕES"]
[]
[]
[]
[]
[]
[]
[]
[]
[]
[]
[]
[]
[]
[]
[]
[]
[]
[]
[]
[]
[null,null,"Entidade: ",null,null,null,{"$f":"IF(Identificação!AF25,Identificação!L27,\"\")","v":""},null,null,null,null,null,null,null,null,null,null,null,null,null,null,null,null,null,null,null,null,null,null,null,null,null,null,null,null,null,null,null,null,null,null,null,null,null,null,null,null,null,null,null,null,null,null,null,null,null,"Página 3"]
[]
[null,null,null,null,null,null,null,null,null,"Rua da Sé, n.º 158",null,null,null,null,null,null,null,null,null,null,null,null,null,null,null,null,null,null,null,null,null,null,null,null,null,null,null,null,null,null,null,null,null,null,null,null,null,"https://portal.azores.gov.pt/web/drd"]
[null,null,null,null,null,null,null,null,null,"9700-191 Angra do Heroísmo",null,null,null,null,null,null,null,null,null,null,null,null,null,null,null,null,null,null,null,null,"Telefone: 295 206 980 ",null,null,null,null,null,null,null,null,null,null,null,null,null,null,null,null,"drd@azores.gov.pt"]

{"sheet":"Folha1","index":3,"n_rows":74,"n_cols":29,"rows_kept":74,"cut":false,"hidden":true,"merged":[[69,15,69,17],[69,18,71,18],[69,19,71,19],[69,21,71,21],[60,15,60,23],[60,24,60,28],[61,15,61,19],[61,20,61,21],[61,22,62,22],[61,23,62,23],[61,24,62,24],[61,25,62,25],[61,26,62,26],[61,27,62,27],[61,28,62,28],[50,20,52,20],[50,15,52,15],[50,16,52,16],[50,17,52,17],[50,18,52,18],[50,19,52,19]]}
[]
[]
[null,null,null,null,null,"ORGANIZAÇÃO",null,null,"Organização","Curso","Máximo financiamento"]
[null,"Viagens",null,null,null,"Treinadores - Curso",null,null,"Organização","Curso","Treinadores","I",2200,"Ultrapassa o máximo finaciamento"]
[null,"Lisboa",134,null,null,"Máximo financiamento",null,null,"Organização","Curso","Treinadores","II",3750,"Ultrapassa o máximo finaciamento"]
[null,"Madeira",119,null,null,"I",2200,null,"Organização","Curso","Treinadores","III","Decisão DRD"]
[null,"Açores",60,null,null,"II",3750,null,"Organização","Curso","Treinadores","IV","Decisão DRD"]
[null,"Maritima (PIX/FAI)",7.6,null,null,"III","Decisão DRD",null,"Organização","Curso","Arbitros/Juizes","Estagiário",900,"Ultrapassa o máximo finaciamento"]
[null,"Maritima (SJZ/FAI)",31,null,null,"IV","Decisão DRD",null,"Organização","Curso","Arbitros/Juizes","1ª Progressão",1500,"Ultrapassa o máximo finaciamento"]
[null,"Maritima (SJZ/PIX)",21,null,null,null,null,null,"Organização","Curso","Arbitros/Juizes","2ª Progressão","Decisão DRD"]
[null,null,null,null,null,"Grau I e II",null,null,"Organização","Curso","Arbitros/Juizes","Reciclagem"]
[null,null,null,null,null,"Preletores"]
[null,null,null,null,null,"Passagem aerea/ maritima",1]
[null,null,null,null,null,"Alojamento e refeições",0.8]
[null,null,null,null,null,"Preleções",0.6]
[]
[null,null,null,null,null,"Arbitros/Juizes - Curso"]
[null,null,null,null,null,"Máximo financiamento"]
[null,null,null,null,null,"Estagiário",900]
[null,null,null,null,null,"1ª progressão",1500]
[null,null,null,null,null,"seguintes","Decisão DRD"]
[]
[null,null,null,null,null,"Cursos estagiarios/regionais"]
[null,null,null,null,null,"Preletores"]
[null,null,null,null,null,"Passagem aerea/ maritima",1]
[null,null,null,null,null,"Alojamento e refeições",0.8,null,"Participação","Curso","Formandos","formandos ate ao maximo"]
[null,null,null,null,null,"Preleções",0.6,null,"Participação","Curso","Treinadores",8]
[null,null,null,null,null,null,null,null,"Participação","Curso","Arbitros/Juizes",8]
[null,null,null,null,null,null,null,null,"Participação","Formação continua","Treinadores",4]
[null,null,null,null,null,"ORGANIZAÇÃO",null,null,"Participação","Formação continua","Arbitros/Juizes",4]
[null,null,null,null,null,"Arbitros/Juizes - reciclagens obrigatorias"]
[null,null,null,null,null,"Preletores","ate ao maximo de 2"]
[null,null,null,null,null,"Passagem aerea/ maritima",1,null,"Participação","Formação continua","Preletores","Preletores ate ao maximo"]
[null,null,null,null,null,null,null,null,"Participação","Formação continua","Treinadores",2]
[null,null,null,null,null,"Treinadores - Formação Continua"]
[null,null,null,null,null,"Preletores","ate ao maximo de 2"]
[null,null,null,null,null,"Passagem aerea/ maritima",1]
[]
[]
[]
[null,null,null,null,null,"PARTICIPAÇÃO"]
[null,null,null,null,null,"Treinadores e Arbitros/Juizes - Curso"]
[null,null,null,null,null,"Formandos","ate ao maximo de 8"]
[null,null,null,null,null,"deslocações","Tarifas"]
[]
[null,null,null,null,null,"PARTICIPAÇÃO"]
[null,null,null,null,null,"Treinadores e Arbitros/Juizes - Formação continua e Reciclagens"]
[null,null,null,null,null,"Formandos","ate ao maximo de 4"]
[null,null,null,null,null,"deslocações","Tarifas"]
[]
[null,null,null,null,null,null,null,null,null,null,null,null,null,null,null,"Tipologia da ação","Modo","Categoria","Designação da ação e indicação da ilha/Porto/Lisboa/Madeira, por extenso, onde decorre\n*Apenas inicial em maiúscula\n*Indicar nível para árbitro/juiz\n*Indicar grau para treinador\n","Data prevista da ação\n* mês/último dia da ação","Ilha/Cont/Mad prevista para realização "]
[]
[]
[null,null,null,null,null,null,null,null,null,null,null,null,null,null,null,"Formação Contínua","Participação","Treinador","Formação Contínua de Treinadores - Porto","junho","Continente"]
[null,null,null,null,null,null,null,null,null,null,null,null,null,null,null,"Curso","Organização","Treinador","Curso de Treinadores de Grau I - Terceira","julho","Terceira"]
[]
[]
[]
[]
[]
[null,null,null,null,null,null,null,null,null,null,null,null,null,null,null,"DESPESAS",null,null,null,null,null,null,null,null,"RECEITAS"]
[null,null,null,null,null,null,null,null,null,null,null,null,null,null,null,"Dados preletor(es)",null,null,null,null,"Dados formandos",null,"Outras","Total das despesas","Taxa de inscrição","Apoio federativo","Apoio da DRD","Outras","Total das receitas"]
[null,null,null,null,null,null,null,null,null,null,null,null,null,null,null,"N.º de deslocados","Valor Viagens","Alojamento","Refeições","Preleções","Nº de deslocados","Valor Viagens "]
[null,null,null,null,null,null,null,null,null,null,null,null,null,null,null,0,0,0,0,0,1,134,0,{"$f":"Q64+R64+S64+T64+V64+W64","v":134},0,0,134,0,{"$f":"SUM(Y64:AB64)","v":134}]
[null,null,null,null,null,null,null,null,null,null,null,null,null,null,null,1,450,225,120,2400,10,600,{"$f":"500+250+68+240","v":1058},4853,1500,0,2838,515,4853]
[]
[]
[]
[]
[null,null,null,null,null,null,null,null,null,null,null,null,null,null,null,"Dados preletor(es)",null,null,"Sub-total organização da ação","Limite máximo de valor para organização","Dados formandos","Total de apoio previsto DRD - Se não houvesse limite financeiro  "]
[null,null,null,null,null,null,null,null,null,null,null,null,null,null,null,"Valor Viagens",0.8,0.6,null,null,"Valor Viagens"]
[null,null,null,null,null,null,null,null,null,null,null,null,null,null,null,"Sem limite  para cursos\n2 para cada FC","Alojamento + Refeições","Preleções",null,null,"Até 8 viagens para cursos\nAté 4 viagens para FC"]
[null,null,null,null,null,null,null,null,null,null,null,null,null,null,null,null,{"$f":"IF(AND($G19=\"Curso\",#REF!=\"Organização\"),(C24+D24)*$AF$12,\"\")","v":{"$error":"#REF!"}},{"$f":"IF(AND($G19=\"Curso\",#REF!=\"Organização\"),E24*$AG$12,\"\")","v":{"$error":"#REF!"}},{"$f":"SUM(P73:R73)","v":{"$error":"#REF!"}},null,{"$f":"134*1","v":134},{"$f":"U73","v":134}]
[null,null,null,null,null,null,null,null,null,null,null,null,null,null,null,{"$f":"B25","v":0},{"$f":"IF(AND($G20=\"Curso\",#REF!=\"Organização\"),(C25+D25)*$AF$12,\"\")","v":{"$error":"#REF!"}},{"$f":"IF(AND($G20=\"Curso\",#REF!=\"Organização\"),E25*$AG$12,\"\")","v":{"$error":"#REF!"}},{"$f":"SUM(P74:R74)","v":{"$error":"#REF!"}},2200,{"$f":"60*8","v":480},{"$f":"U74+S74","v":{"$error":"#REF!"}}]